fUSD/lending_fUSD_20260207
["ID","MTS","AMOUNT","RATE_DAILY","PERIOD"]
[404703382,1770484793636,-799.54513345,0.00042999,120]
[404703383,1770484793663,-168.3888056,0.00042999,120]
[404703384,1770484793690,-500.0,0.00042999,120]
[404703385,1770484793714,-475.56697974,0.00042999,120]
[404703386,1770484793739,-500.0,0.00042999,120]
[404703387,1770484793763,-156.587,0.00042999,120]
[404703388,1770484793791,-174.61919141,0.00042999,120]
[404703389,1770484793815,-500.0,0.00042999,120]
[404703390,1770484793843,-162.380719,0.00042999,120]
[404703391,1770484793873,-500.0,0.00042999,120]
[404703392,1770484793904,-181.08010149,0.00042999,120]
[404703393,1770484793930,-168.3888056,0.00042999,120]
[404703394,1770484793958,-500.0,0.00042999,120]
[404703395,1770484793985,-151.0,0.00042999,120]
[404703396,1770484794011,-174.61919141,0.00042999,120]
[404703397,1770484794038,-500.0,0.00042999,120]
[404703398,1770484794064,-181.08010149,0.00042999,120]
[404703399,1770484794095,-500.0,0.00042999,120]
[404703400,1770484794122,-187.78006525,0.00042999,120]
[404703401,1770484794147,-151.0,0.00042999,120]
[404703402,1770484794172,-151.0,0.00042999,120]
[404703403,1770484794198,-194.72792766,0.00042999,120]
[404703404,1770484794224,-682.24,0.00042999,120]
[404703405,1770484794251,-151.0,0.00042999,120]
[404703406,1770484794277,-682.24,0.00042999,120]
[404703407,1770484794304,-151.0,0.00042999,120]
[404703408,1770484794333,-187.78006525,0.00042999,120]
[404703409,1770484794358,-682.24,0.00042999,120]
[404703410,1770484794383,-201.93286099,0.00042999,120]
[404703411,1770484794407,-151.0,0.00042999,120]
[404703412,1770484794433,-151.0,0.00042999,120]
[404703413,1770484794460,-194.72792766,0.00042999,120]
[404703414,1770484794485,-209.40437684,0.00042999,120]
[404703415,1770484794513,-151.0,0.00042999,120]
[404703416,1770484794539,-201.93286099,0.00042999,120]
[404703417,1770484794564,-217.15233878,0.00042999,120]
[404703418,1770484794589,-151.0,0.00042999,120]
[404703419,1770484794615,-225.18697532,0.00042999,120]
[404703420,1770484794640,-151.0,0.00042999,120]
[404703421,1770484794665,-201.59464302,0.00042999,120]
[404703422,1770484794692,-194.83890301,0.00042999,120]
[404703423,1770484794727,-209.40437684,0.00042999,120]
[404703424,1770484794757,-217.15233878,0.00042999,120]
[404703425,1770484794788,-225.18697532,0.00042999,120]
[404703426,1770484794820,-233.51889341,0.00042999,120]
[404703427,1770484794860,-242.15909246,0.00042999,120]
[404703428,1770484794890,-251.11897888,0.00042999,120]
[404703429,1770484794918,-260.4103811,0.00042999,120]
[404703430,1770484794952,-270.0455652,0.00042999,120]
[404703431,1770484794982,-280.03725112,0.00042999,120]
[404703432,1770484795012,-290.39862941,0.00042999,120]
[404703433,1770484795043,-301.1433787,0.00042999,120]
[404703434,1770484795069,-200.0,0.00042999,120]
[404703435,1770484795096,-200.0,0.00042999,120]
[404703436,1770484795124,-200.0,0.00042999,120]
[404703437,1770484795152,-200.0,0.00042999,120]
[404703438,1770484795187,-200.0,0.00042999,120]
[404703439,1770484795214,-202.57622393,0.00042999,120]
[404703440,1770484795240,-151.0,0.00042999,120]
[404703441,1770484795267,-151.0,0.00042999,120]
[404703442,1770484795293,-151.0,0.00042999,120]
[404703443,1770484795320,-151.0,0.00042999,120]
[404703444,1770484795345,-151.0,0.00042999,120]
[404703445,1770484795371,-151.0,0.00042999,120]
[404703446,1770484795397,-151.0,0.00042999,120]
[404703447,1770484795426,-151.0,0.00042999,120]
[404703448,1770484795454,-151.0,0.00042999,120]
[404703449,1770484795480,-151.0,0.00042999,120]
[404703450,1770484795506,-151.0,0.00042999,120]
[404703451,1770484795532,-151.0,0.00042999,120]
[404703452,1770484795558,-151.0,0.00042999,120]
[404703453,1770484795584,-151.0,0.00042999,120]
[404703454,1770484795610,-151.0,0.00042999,120]
[404703455,1770484795635,-151.0,0.00042999,120]
[404703456,1770484795660,-151.0,0.00042999,120]
[404703457,1770484795687,-151.0,0.00042999,120]
[404703458,1770484795712,-151.0,0.00042999,120]
[404703459,1770484795739,-151.0,0.00042999,120]
[404703460,1770484795765,-626.16587062,0.00042999,120]
[404703461,1770484795789,-151.0,0.00042999,120]
[404703462,1770484795814,-156.587,0.00042999,120]
[404703463,1770484795841,-162.380719,0.00042999,120]
[404703464,1770484795866,-168.3888056,0.00042999,120]
[404703465,1770484795892,-174.61919141,0.00042999,120]
[404703466,1770484795917,-181.08010149,0.00042999,120]
[404703467,1770484795945,-187.78006525,0.00042999,120]
[404703468,1770484795970,-194.72792766,0.00042999,120]
[404703469,1770484795995,-325960.26453172,0.00043,120]
[404703470,1770484796020,-200000.0,0.00043,120]
[404703471,1770484796044,-156763.1130818,0.00043,120]
[404703472,1770484796070,-9535.0,0.00043,120]
[404703473,1770484796096,-153.0,0.00043,120]
[404703474,1770484796122,-172.0,0.00043,90]
[404703475,1770484796297,-165.0,0.00043,90]
[404703476,1770484796323,-172.0,0.00043014,90]
[404703477,1770484796349,-150.0,0.00043017,30]
[404703478,1770484796374,-1968.37151036,0.00043057,120]
[404703479,1770484796400,-1277.18745,0.0004307,120]
[404703480,1770484796427,-191.89062243,0.0004311,120]
[404703481,1770484796455,-150.0,0.00043118,30]
[404703482,1770484796479,-150.0,0.00043118,30]
[404703483,1770484796503,-150.0,0.00043125,30]
[404703484,1770484796528,-682.24,0.00043203,120]
[404703485,1770484796552,-62244.0,0.00043203,30]
[404703486,1770484796576,-171.14165,0.00043207,120]
[404703487,1770484796600,-151.0,0.00043207,120]
[404703488,1770484796625,-151.0,0.00043207,120]
[404703489,1770484796648,-151.0,0.00043207,120]
[404703490,1770484796673,-151.0,0.00043207,120]
[404703491,1770484796700,-151.0,0.00043207,120]
[404703492,1770484796724,-342.865,0.00043207,120]
[404703493,1770484796749,-151.0,0.00043207,120]
[404703494,1770484796774,-151.0,0.00043207,120]
[404703495,1770484796798,-342.865,0.00043207,120]
[404703496,1770484796823,-151.0,0.00043207,120]
[404703497,1770484796851,-342.865,0.00043207,120]
[404703498,1770484796877,-342.865,0.00043207,120]
[404703499,1770484796902,-337.98365,0.00043207,120]
[404703500,1770484796930,-337.98365,0.00043207,120]
[404703501,1770484796957,-337.98365,0.00043207,120]
[404703502,1770484796983,-337.98365,0.00043207,120]
[404703503,1770484797008,-430.655359,0.00043207,120]
[404703504,1770484797033,-840.151235,0.00043207,120]
[404703505,1770484797058,-430.655359,0.00043207,120]
[404703506,1770484797082,-430.655359,0.00043207,120]
[404703507,1770484797106,-350.29852,0.00043207,120]
[404703508,1770484797132,-840.151235,0.00043207,120]
[404703509,1770484797157,-430.655359,0.00043207,120]
[404703510,1770484797183,-350.29852,0.00043207,120]
[404703511,1770484797210,-840.151235,0.00043207,120]
[404703512,1770484797235,-265.565396,0.00043207,31]
[404703513,1770484797261,-350.29852,0.00043207,120]
[404703514,1770484797286,-840.151235,0.00043207,120]
[404703515,1770484797312,-151.0,0.00043207,120]
[404703516,1770484797338,-265.565396,0.00043207,31]
[404703517,1770484797363,-151.0,0.00043207,120]
[404703518,1770484797389,-682.24,0.00043209,120]
[404703519,1770484797417,-682.24,0.00043209,120]
[404703520,1770484797444,-682.24,0.00043209,120]
[404703521,1770484797471,-682.24,0.00043209,120]
[404703522,1770484797497,-682.30484198,0.00043209,120]
[404703523,1770484797523,-300.0,0.00043209,30]
[404703524,1770484797550,-50000.0,0.0004321,51]
[404703525,1770484797576,-50000.0,0.0004321,52]
[404703526,1770484797600,-266.64861202,0.0004321,120]
[404703527,1770484797627,-127297.35059902,0.0004321,63]
[404703528,1770484797654,-1244631.2368903,0.0004321,120]
[404703529,1770484797679,-5000000.0,0.0004321,120]
[404703530,1770484797705,-10000.0,0.0004321,120]
[404703531,1770484797730,-34654.38287476,0.0004321,120]
[404703532,1770484797754,-151.0,0.0004321,120]
[404703533,1770484797777,-176.776451,0.0004321,120]
[404703534,1770484797801,-151.0,0.0004321,120]
[404703535,1770484797826,-151.0,0.0004321,120]
[404703536,1770484797855,-151.0,0.0004321,120]
[404703537,1770484797882,-151.0,0.0004321,120]
[404703538,1770484797907,-151.0,0.0004321,120]
[404703539,1770484797932,-151.0,0.0004321,120]
[404703540,1770484797958,-151.0,0.0004321,120]
[404703541,1770484797982,-151.0,0.0004321,120]
[404703542,1770484798006,-151.0,0.0004321,120]
[404703543,1770484798031,-154.15747,0.0004321,120]
[404703544,1770484798057,-184.388117,0.0004321,120]
[404703545,1770484798081,-204.547439,0.0004321,120]
[404703546,1770484798107,-253.047317,0.0004321,120]
[404703547,1770484798132,-253.047317,0.0004321,120]
[404703548,1770484798156,-253.047317,0.0004321,120]
[404703549,1770484798181,-253.047317,0.0004321,120]
[404703550,1770484798208,-253.047317,0.0004321,120]
[404703551,1770484798233,-253.047317,0.0004321,120]
[404703552,1770484798259,-253.047317,0.0004321,120]
[404703553,1770484798283,-253.047317,0.0004321,120]
[404703554,1770484798308,-151.0,0.0004321,120]
[404703555,1770484798333,-151.0,0.0004321,120]
[404703556,1770484798358,-343.274458,0.0004321,120]
[404703557,1770484798383,-343.274458,0.0004321,120]
[404703558,1770484798406,-343.274458,0.0004321,120]
[404703559,1770484798430,-343.274458,0.0004321,120]
[404703560,1770484798455,-343.274458,0.0004321,120]
[404703561,1770484798481,-343.274458,0.0004321,120]
[404703562,1770484798504,-343.274458,0.0004321,120]
[404703563,1770484798532,-343.274458,0.0004321,120]
[404703564,1770484798556,-151.0,0.0004321,120]
[404703565,1770484798580,-181.525363,0.0004321,120]
[404703566,1770484798604,-399.634803,0.0004321,120]
[404703567,1770484798628,-399.634803,0.0004321,120]
[404703568,1770484798653,-399.634803,0.0004321,120]
[404703569,1770484798680,-399.634803,0.0004321,120]
[404703570,1770484798838,-399.634803,0.0004321,120]
[404703571,1770484798864,-399.634803,0.0004321,120]
[404703572,1770484798892,-399.634803,0.0004321,120]
[404703573,1770484798917,-399.634803,0.0004321,120]
[404703574,1770484798943,-151.0,0.0004321,120]
[404703575,1770484798970,-151.0,0.0004321,120]
[404703576,1770484798995,-154.022486,0.0004321,120]
[404703577,1770484799020,-151.0,0.0004321,120]
[404703578,1770484799044,-173.003854,0.0004321,120]
[404703579,1770484799070,-282.093951,0.0004321,120]
[404703580,1770484799096,-282.093951,0.0004321,120]
[404703581,1770484799122,-282.093951,0.0004321,120]
[404703582,1770484799147,-282.093951,0.0004321,120]
[404703583,1770484799172,-151.0,0.0004321,120]
[404703584,1770484799197,-282.093951,0.0004321,120]
[404703585,1770484799222,-204.374991,0.0004321,120]
[404703586,1770484799247,-282.093951,0.0004321,120]
[404703587,1770484799272,-282.093951,0.0004321,120]
[404703588,1770484799297,-151.0,0.0004321,120]
[404703589,1770484799323,-151.0,0.0004321,120]
[404703590,1770484799348,-282.093951,0.0004321,120]
[404703591,1770484799372,-172.026694,0.0004321,120]
[404703592,1770484799396,-151.0,0.0004321,120]
[404703593,1770484799420,-151.0,0.0004321,120]
[404703594,1770484799444,-151.0,0.0004321,120]
[404703595,1770484799468,-151.0,0.0004321,120]
[404703596,1770484799492,-151.0,0.0004321,120]
[404703597,1770484799516,-159.234161,0.0004321,120]
[404703598,1770484799541,-173.436972,0.0004321,120]
[404703599,1770484799565,-173.436972,0.0004321,120]
[404703600,1770484799590,-520.010285,0.0004321,120]
[404703601,1770484799614,-173.436972,0.0004321,120]
[404703602,1770484799640,-520.010285,0.0004321,120]
[404703603,1770484799665,-173.436972,0.0004321,120]
[404703604,1770484799691,-520.010285,0.0004321,120]
[404703605,1770484799715,-173.436972,0.0004321,120]
[404703606,1770484799739,-520.010285,0.0004321,120]
[404703607,1770484799763,-173.436972,0.0004321,120]
[404703608,1770484799788,-520.010285,0.0004321,120]
[404703609,1770484799813,-173.436972,0.0004321,120]
[404703610,1770484799839,-173.436972,0.0004321,120]
[404703611,1770484799865,-520.010285,0.0004321,120]
[404703612,1770484799891,-520.010285,0.0004321,120]
[404703613,1770484799916,-520.010285,0.0004321,120]
[404703614,1770484799941,-152.916875,0.0004321,120]
[404703615,1770484799966,-187.553409,0.0004321,120]
[404703616,1770484799990,-157.32179,0.0004321,120]
[404703617,1770484800016,-151.0,0.0004321,120]
[404703618,1770484800040,-262.368647,0.0004321,120]
[404703619,1770484800065,-151.0,0.0004321,120]
[404703620,1770484800090,-151.0,0.0004321,120]
[404703621,1770484800115,-559.100773,0.0004321,120]
[404703622,1770484800140,-559.100773,0.0004321,120]
[404703623,1770484800181,-151.0,0.0004321,120]
[404703624,1770484800209,-194.072837,0.0004321,120]
[404703625,1770484800236,-559.100773,0.0004321,120]
[404703626,1770484800263,-559.100773,0.0004321,120]
[404703627,1770484800290,-559.100773,0.0004321,120]
[404703628,1770484800316,-559.100773,0.0004321,120]
[404703629,1770484800342,-559.100773,0.0004321,120]
[404703630,1770484800368,-559.100773,0.0004321,120]
[404703631,1770484800394,-151.0,0.0004321,120]
[404703632,1770484800420,-151.0,0.0004321,120]
[404703633,1770484800446,-188.75661,0.0004321,120]
[404703634,1770484800476,-188.75661,0.0004321,120]
[404703635,1770484800502,-188.75661,0.0004321,120]
[404703636,1770484800530,-188.75661,0.0004321,120]
[404703637,1770484800554,-188.75661,0.0004321,120]
[404703638,1770484800586,-188.75661,0.0004321,120]
[404703639,1770484800612,-188.75661,0.0004321,120]
[404703640,1770484800639,-188.75661,0.0004321,120]
[404703641,1770484800664,-536.807343,0.0004321,120]
[404703642,1770484800694,-536.807343,0.0004321,120]
[404703643,1770484800720,-536.807343,0.0004321,120]
[404703644,1770484800747,-536.807343,0.0004321,120]
[404703645,1770484800773,-536.807343,0.0004321,120]
[404703646,1770484800799,-1193.105908,0.0004321,120]
[404703647,1770484800825,-536.807343,0.0004321,120]
[404703648,1770484800854,-1193.105908,0.0004321,120]
[404703649,1770484800881,-536.807343,0.0004321,120]
[404703650,1770484800906,-1193.105908,0.0004321,120]
[404703651,1770484800934,-536.807343,0.0004321,120]
[404703652,1770484800960,-1193.105908,0.0004321,120]
[404703653,1770484800987,-1193.105908,0.0004321,120]
[404703654,1770484801019,-1193.105908,0.0004321,120]
[404703655,1770484801046,-1193.105908,0.0004321,120]
[404703656,1770484801073,-1193.105908,0.0004321,120]
[404703657,1770484801099,-151.0,0.0004321,120]
[404703658,1770484801125,-160.211758,0.0004321,120]
[404703659,1770484801150,-151.0,0.0004321,120]
[404703660,1770484801176,-151.0,0.0004321,120]
[404703661,1770484801203,-227.633648,0.0004321,120]
[404703662,1770484801230,-151.0,0.0004321,120]
[404703663,1770484801255,-151.0,0.0004321,120]
[404703664,1770484801281,-151.0,0.0004321,120]
[404703665,1770484801515,-171.890104,0.0004321,120]
[404703666,1770484801547,-254.190518,0.0004321,120]
[404703667,1770484801573,-151.0,0.0004321,120]
[404703668,1770484801600,-151.0,0.0004321,120]
[404703669,1770484801625,-151.0,0.0004321,120]
[404703670,1770484801650,-151.0,0.0004321,120]
[404703671,1770484801676,-151.0,0.0004321,120]
[404703672,1770484801704,-151.0,0.0004321,120]
[404703673,1770484801731,-848.725819,0.0004321,120]
[404703674,1770484801756,-848.725819,0.0004321,120]
[404703675,1770484801786,-848.725819,0.0004321,120]
[404703676,1770484801813,-848.725819,0.0004321,120]
[404703677,1770484801841,-848.725819,0.0004321,120]
[404703678,1770484801867,-848.725819,0.0004321,120]
[404703679,1770484801894,-848.725819,0.0004321,120]
[404703680,1770484801922,-848.725819,0.0004321,120]
[404703681,1770484801948,-427.622148,0.0004321,120]
[404703682,1770484801973,-427.622148,0.0004321,120]
[404703683,1770484801999,-427.622148,0.0004321,120]
[404703684,1770484802023,-427.622148,0.0004321,120]
[404703685,1770484802051,-427.622148,0.0004321,120]
[404703686,1770484802077,-427.622148,0.0004321,120]
[404703687,1770484802102,-427.622148,0.0004321,120]
[404703688,1770484802127,-427.622148,0.0004321,120]
[404703689,1770484802152,-180.780419,0.0004321,120]
[404703690,1770484802177,-180.780419,0.0004321,120]
[404703691,1770484802205,-180.780419,0.0004321,120]
[404703692,1770484802231,-180.780419,0.0004321,120]
[404703693,1770484802257,-180.780419,0.0004321,120]
[404703694,1770484802283,-180.780419,0.0004321,120]
[404703695,1770484802307,-180.780419,0.0004321,120]
[404703696,1770484802331,-180.780419,0.0004321,120]
[404703697,1770484802356,-165.124346,0.0004321,120]
[404703698,1770484802382,-151.0,0.0004321,120]
[404703699,1770484802407,-151.0,0.0004321,120]
[404703700,1770484802432,-151.0,0.0004321,120]
[404703701,1770484802458,-151.0,0.0004321,120]
[404703702,1770484802498,-151.0,0.0004321,120]
[404703703,1770484802525,-163.22888,0.0004321,120]
[404703704,1770484802550,-151.0,0.0004321,120]
[404703705,1770484802575,-151.0,0.0004321,120]
[404703706,1770484802600,-342.865,0.0004321,120]
[404703707,1770484802627,-157.486247,0.0004321,120]
[404703708,1770484802652,-151.0,0.0004321,120]
[404703709,1770484802680,-342.865,0.0004321,120]
[404703710,1770484802706,-151.0,0.0004321,120]
[404703711,1770484802731,-342.865,0.0004321,120]
[404703712,1770484802757,-151.0,0.0004321,120]
[404703713,1770484802783,-342.865,0.0004321,120]
[404703714,1770484802809,-151.0,0.0004321,120]
[404703715,1770484802834,-342.865,0.0004321,120]
[404703716,1770484802865,-151.0,0.0004321,120]
[404703717,1770484802892,-342.865,0.0004321,120]
[404703718,1770484802919,-342.865,0.0004321,120]
[404703719,1770484802946,-342.865,0.0004321,120]
[404703720,1770484802972,-337.98365,0.0004321,120]
[404703721,1770484802999,-337.98365,0.0004321,120]
[404703722,1770484803027,-337.98365,0.0004321,120]
[404703723,1770484803056,-337.98365,0.0004321,120]
[404703724,1770484803085,-337.98365,0.0004321,120]
[404703725,1770484803117,-337.98365,0.0004321,120]
[404703726,1770484803146,-337.98365,0.0004321,120]
[404703727,1770484803175,-337.98365,0.0004321,120]
[404703728,1770484803204,-430.655359,0.0004321,120]
[404703729,1770484803231,-430.655359,0.0004321,120]
[404703730,1770484803258,-430.655359,0.0004321,120]
[404703731,1770484803287,-840.151235,0.0004321,120]
[404703732,1770484803315,-430.655359,0.0004321,120]
[404703733,1770484803343,-840.151235,0.0004321,120]
[404703734,1770484803371,-430.655359,0.0004321,120]
[404703735,1770484803398,-350.29852,0.0004321,120]
[404703736,1770484803426,-430.655359,0.0004321,120]
[404703737,1770484803453,-840.151235,0.0004321,120]
[404703738,1770484803480,-350.29852,0.0004321,120]
[404703739,1770484803507,-840.151235,0.0004321,120]
[404703740,1770484803539,-430.655359,0.0004321,120]
[404703741,1770484803567,-350.29852,0.0004321,120]
[404703742,1770484803594,-430.655359,0.0004321,120]
[404703743,1770484803622,-840.151235,0.0004321,120]
[404703744,1770484803649,-350.29852,0.0004321,120]
[404703745,1770484803678,-840.151235,0.0004321,120]
[404703746,1770484803706,-265.565396,0.0004321,31]
[404703747,1770484803732,-265.565396,0.0004321,31]
[404703748,1770484803760,-350.29852,0.0004321,120]
[404703749,1770484803787,-840.151235,0.0004321,120]
[404703750,1770484803812,-350.29852,0.0004321,120]
[404703751,1770484803842,-840.151235,0.0004321,120]
[404703752,1770484803868,-151.0,0.0004321,120]
[404703753,1770484803895,-265.565396,0.0004321,31]
[404703754,1770484803921,-150.0,0.00043223,30]
[404703755,1770484803948,-300.080113,0.00043231,115]
[404703756,1770484803975,-150.0,0.00043277,30]
[404703757,1770484804006,-150.0,0.00043277,30]
[404703758,1770484804033,-151.0,0.00043287,60]
[404703759,1770484804061,-151.0,0.00043287,60]
[404703760,1770484804305,-712.51813153,0.000433,120]
[404703761,1770484804332,-150.0,0.00043325,30]
[404703762,1770484804360,-150.0,0.00043356,120]
[404703763,1770484804386,-604.36305708,0.000434,120]
[404703764,1770484804411,-150.0,0.000434,120]
[404703765,1770484804436,-150.0,0.000434,120]
[404703766,1770484804463,-150.0,0.00043407,30]
[404703767,1770484804488,-150.0,0.00043429,30]
[404703768,1770484804512,-2500.0,0.00043457,120]
[404703769,1770484804541,-2500.0,0.00043457,120]
[404703770,1770484804567,-281.4747746,0.00043458,120]
[404703771,1770484804594,-150.0,0.00043475,30]
[404703772,1770484804620,-150.0,0.00043475,30]
[404703773,1770484804646,-479.58366267,0.00043481,60]
[404703774,1770484804671,-849.22020599,0.00043481,60]
[404703775,1770484804698,-568.64997654,0.00043481,60]
[404703776,1770484804725,-1215.04268381,0.0004349,120]
[404703777,1770484804752,-151.0,0.00043497,120]
[404703778,1770484804782,-50000.0,0.000435,90]
[404703779,1770484804810,-6966.1769867,0.000435,30]
[404703780,1770484804839,-86503.45186351,0.000435,120]
[404703781,1770484804865,-150.0,0.00043581,30]
[404703782,1770484804893,-150.0,0.00043581,30]
[404703783,1770484804920,-150.0,0.00043605,120]
[404703784,1770484804948,-150.0,0.00043615,120]
[404703785,1770484804974,-2465.96088583,0.00043619,120]
[404703786,1770484805004,-62244.0,0.00043644,30]
[404703787,1770484805029,-4000.0,0.0004369,120]
[404703788,1770484805055,-153.0,0.000437,120]
[404703789,1770484805082,-150.0,0.00043706,30]
[404703790,1770484805107,-35372.17675998,0.00043712,120]
[404703791,1770484805135,-11017.6,0.00043721,117]
[404703792,1770484805162,-150.0,0.00043732,30]
[404703793,1770484805188,-150.0,0.00043756,30]
[404703794,1770484805216,-150.0,0.00043798,30]
[404703795,1770484805256,-1047.95,0.000438,120]
[404703796,1770484805285,-446.17,0.000438,120]
[404703797,1770484805312,-279.02,0.000438,120]
[404703798,1770484805339,-1511.41,0.000438,30]
[404703799,1770484805367,-150.0,0.00043831,30]
[404703800,1770484805395,-150.0,0.00043831,30]
[404703801,1770484805422,-952.55374203,0.00043835,120]
[404703802,1770484805450,-288.33,0.0004384,120]
[404703803,1770484805477,-150.0,0.00043884,30]
[404703804,1770484805503,-150.0,0.00043884,30]
[404703805,1770484805530,-1071.0,0.0004389,120]
[404703806,1770484805557,-331.51541409,0.000439,30]
[404703807,1770484805584,-2588.14401967,0.000439,120]
[404703808,1770484805608,-2500.0,0.00043956,120]
[404703809,1770484805632,-2500.0,0.00043956,120]
[404703810,1770484805656,-1117.79,0.00043982,30]
[404703811,1770484805682,-1117.79,0.00043982,30]
[404703812,1770484805708,-1117.79,0.00043982,30]
[404703813,1770484805735,-1117.79,0.00043982,30]
[404703814,1770484805761,-1117.79,0.00043982,30]
[404703815,1770484805786,-1117.79,0.00043982,30]
[404703816,1770484805813,-1117.79,0.00043982,30]
[404703817,1770484805848,-1117.79,0.00043982,30]
[404703818,1770484805878,-1117.79,0.00043982,30]
[404703819,1770484805905,-1117.79,0.00043982,30]
[404703820,1770484805931,-1117.79,0.00043982,30]
[404703821,1770484805958,-1117.79,0.00043982,30]
[404703822,1770484805983,-1117.79,0.00043982,30]
[404703823,1770484806008,-1117.79,0.00043982,30]
[404703824,1770484806033,-1117.79,0.00043982,30]
[404703825,1770484806058,-1117.79,0.00043982,30]
[404703826,1770484806083,-1117.79,0.00043982,30]
[404703827,1770484806108,-1117.79,0.00043982,30]
[404703828,1770484806133,-1117.79,0.00043982,30]
[404703829,1770484806159,-1117.79,0.00043982,30]
[404703830,1770484806186,-1117.79,0.00043982,30]
[404703831,1770484806215,-1117.79,0.00043982,30]
[404703832,1770484806241,-4641.20551933,0.00044,120]
[404703833,1770484806267,-1348.76949174,0.00044,120]
[404703834,1770484806294,-17111.87,0.00044,60]
[404703835,1770484806320,-200.0,0.00044,120]
[404703836,1770484806346,-29836.1548159,0.00044,120]
[404703837,1770484806371,-3600.0,0.00044,120]
[404703838,1770484806397,-20000.0,0.00044,120]
[404703839,1770484806423,-13017.90107889,0.00044,120]
[404703840,1770484806449,-9267.37771587,0.00044,120]
[404703841,1770484806477,-25684.5013064,0.00044,120]
[404703842,1770484806503,-150.48158645,0.00044,120]
[404703843,1770484806528,-1569.215,0.00044,90]
[404703844,1770484806553,-1569.21,0.00044,120]
[404703845,1770484806578,-69792.64087818,0.00044,30]
[404703846,1770484806604,-1224.71314,0.00044,120]
[404703847,1770484806628,-5000.0,0.00044,120]
[404703848,1770484806654,-2230.68,0.00044,120]
[404703849,1770484806679,-1800.0,0.00044,60]
[404703850,1770484806705,-3858.34,0.00044,120]
[404703851,1770484806732,-559.082361,0.00044,57]
[404703852,1770484806757,-500.0,0.00044,120]
[404703853,1770484806783,-3813.20028623,0.00044006,30]
[404703854,1770484806822,-3813.20028623,0.00044006,30]
[404703855,1770484806859,-3813.20028623,0.00044006,30]
[404703856,1770484806890,-3813.20028623,0.00044006,30]
[404703857,1770484806919,-150.0,0.00044036,30]
[404703858,1770484806950,-1018.13302742,0.00044043,30]
[404703859,1770484806981,-151.0,0.00044049,120]
[404703860,1770484807011,-151.0,0.0004405,120]
[404703861,1770484807043,-151.0,0.00044052,120]
[404703862,1770484807076,-151.0,0.00044052,120]
[404703863,1770484807107,-151.0,0.00044052,120]
[404703864,1770484807136,-151.0,0.00044052,120]
[404703865,1770484807167,-848.725819,0.00044052,120]
[404703866,1770484807200,-848.725819,0.00044052,120]
[404703867,1770484807230,-848.725819,0.00044052,120]
[404703868,1770484807263,-848.725819,0.00044052,120]
[404703869,1770484807296,-427.622148,0.00044052,120]
[404703870,1770484807330,-427.622148,0.00044052,120]
[404703871,1770484807363,-427.622148,0.00044052,120]
[404703872,1770484807395,-427.622148,0.00044052,120]
[404703873,1770484807425,-180.780419,0.00044052,120]
[404703874,1770484807456,-180.780419,0.00044052,120]
[404703875,1770484807488,-180.780419,0.00044052,120]
[404703876,1770484807519,-180.780419,0.00044052,120]
[404703877,1770484807549,-151.0,0.00044052,120]
[404703878,1770484807579,-151.0,0.00044052,120]
[404703879,1770484807611,-151.0,0.00044052,120]
[404703880,1770484807641,-342.865,0.00044052,120]
[404703881,1770484807673,-151.0,0.00044052,120]